[Event "45th GER-ch Rapid 2019"]
[Site "Neumarkt in der Oberpfalz"]
[Date "2019.09.21"]
[Round "4.3"]
[White "Schwarz, Frank"]
[Black "Beesk, Kevin"]
[Result "1/2-1/2"]
[ECO "A48"]
[WhiteElo "2252"]
[BlackElo "1969"]
[Annotator "NA"]
[PlyCount "131"]
[EventDate "2019.09.21"]
[EventType "swiss"]
[EventCountry "GER"]
[SourceTitle "playchess.com"]
[Source "ChessBase"]
[SourceQuality "1"]
[TimeControl "900+10"]

1. d4 {[%emt 0:00:00]} Nf6 {[%emt 0:00:00]} 2. Nf3 {[%emt 0:00:02]} g6 {[%emt 0:00:04]} 3. Bf4 {[%emt 0:00:14]} Bg7 {[%emt 0:00:19]} 4. e3 {[%emt 0:00:10]} d6 {[%emt 0:00:25]} 5. h3 {[%emt 0:00:05]} Nbd7 {[%emt 0:00:12]} 6. Be2 {[%emt 0:00:23]} b6 {[%emt 0:00:27]} 7. O-O {[%emt 0:00:31]} Bb7 {[%emt 0:00:02]} 8. Bh2 {[%emt 0:00:28]} c5 {[%emt 0:00:02]} 9. c3 {[%emt 0:00:02]} O-O {[%emt 0:00:09]} 10. Nbd2 {[%emt 0:00:07]} Qc7 {[%emt 0:00:12]} 11. Qb1 {[%emt 0:00:23]} Rfc8 {[%emt 0:01:24]} 12. Re1 {[%emt 0:00:42]} a6 {[%emt 0:00:23]} 13. a4 {[%emt 0:00:02]} Bc6 {[%emt 0:00:19]} 14. b4 {[%emt 0:00:28]} cxb4 {[%emt 0:01:51]} 15. cxb4 {[%emt 0:00:02]} b5 {[%emt 0:00:53]} 16. a5 {[%emt 0:02:01]} Qb7 {[%emt 0:00:25]} 17. Bd3 {[%emt 0:00:09]} Bd5 {[%emt 0:01:49]} 18. e4 {[%emt 0:01:42]} Bc4 {[%emt 0:00:01]} 19. Bc2 {[%emt 0:00:05]} Ne8 {[%emt 0:01:54]} 20. e5 {[%emt 0:01:46]} Bd5 {[%emt 0:01:32]} 21. Ra3 {[%emt 0:00:39]} dxe5 {[%emt 0:01:19]} 22. dxe5 {[%emt 0:00:16]} e6 {[%emt 0:00:01]} 23. Bf4 {[%emt 0:00:32]} Rc7 {[%emt 0:00:45]} 24. Be4 {[%emt 0:00:47]} Rac8 {[%emt 0:00:17]} 25. Bxd5 {[%emt 0:00:02]} Qxd5 {[%emt 0:00:01]} 26. Rd3 {[%emt 0:00:22]} Qb7 {[%emt 0:00:18]} 27. Ne4 {[%emt 0:00:36]} Bf8 {[%emt 0:01:06]} 28. Rd4 {[%emt 0:01:08]} Rc4 {[%emt 0:00:20]} 29. Red1 {[%emt 0:00:50]} Rxd4 {[%emt 0:00:13]} 30. Rxd4 {[%emt 0:00:03]} Rc4 {[%emt 0:00:08]} 31. Qd3 {[%emt 0:00:35]} Rxd4 {[%emt 0:00:28]} 32. Qxd4 {[%emt 0:00:10]} Qd5 {[%emt 0:00:33]} 33. Qxd5 {[%emt 0:01:05]} exd5 34. Nc3 {[%emt 0:04:13]} Bxb4 {[%emt 0:00:27]} 35. Nxd5 {[%emt 0:00:00]} Bxa5 {[%emt 0:00:01]} 36. Bh6 {[%emt 0:00:00]} Bd8 {[%emt 0:00:19]} 37. Nb4 {[%emt 0:00:00]} Nb8 {[%emt 0:00:47]} 38. Nd4 {[%emt 0:00:00]} Be7 {[%emt 0:00:47]} 39. Nd5 {[%emt 0:00:00]} Bf8 {[%emt 0:00:01]} 40. Bd2 {[%emt 0:00:00]} Bg7 {[%emt 0:00:31]} 41. f4 {[%emt 0:00:00]} Nd7 {[%emt 0:00:36]} 42. Bb4 {[%emt 0:00:00]} Bf8 {[%emt 0:00:12]} 43. Nc6 {[%emt 0:00:00]} Bxb4 {[%emt 0:00:05]} 44. Ndxb4 {[%emt 0:00:00]} Nc5 {[%emt 0:00:07]} 45. Kf2 {[%emt 0:00:00]} Nc7 {[%emt 0:00:06]} 46. Ke3 {[%emt 0:00:00]} N7e6 {[%emt 0:00:02]} 47. g4 {[%emt 0:00:00]} Kf8 {[%emt 0:00:05]} 48. f5 {[%emt 0:00:00]} gxf5 {[%emt 0:00:01]} 49. gxf5 {[%emt 0:00:00]} Nc7 {[%emt 0:00:05]} 50. Kd4 {[%emt 0:00:00]} Nd7 {[%emt 0:00:14]} 51. Na5 {[%emt 0:00:21]} Ke7 {[%emt 0:00:20]} 52. Nb7 {[%emt 0:00:03]} Ke8 {[%emt 0:00:33]} 53. Nc6 {[%emt 0:00:22]} Kf8 {[%emt 0:00:14]} 54. Nc5 {[%emt 0:00:31]} Ke8 {[%emt 0:00:15]} 55. Ne4 {[%emt 0:00:06]} Kf8 {[%emt 0:00:11]} 56. Ng5 {[%emt 0:00:13]} h6 {[%emt 0:00:09]} 57. e6 {[%emt 0:00:11]} fxe6 {[%emt 0:00:18]} 58. fxe6 {[%emt 0:00:01]} hxg5 {[%emt 0:00:02]} 59. exd7 {[%emt 0:00:06]} Ne6+ {[%emt 0:00:14]} 60. Kd5 {[%emt 0:00:12]} Kf7 {[%emt 0:00:03]} 61. Kd6 {[%emt 0:00:08]} b4 {[%emt 0:00:13]} 62. Nxb4 {[%emt 0:00:01]} a5 {[%emt 0:00:01]} 63. Nc6 {[%emt 0:00:12]} a4 {[%emt 0:00:03]} 64. Ne5+ {[%emt 0:00:05]} Kf6 {[%emt 0:00:02]} 65. Nc4 {[%emt 0:00:03]} Nd8 {[%emt 0:00:07]} 66. Na3 {[%emt 0:02:02] Ke5+} 1/2-1/2

[Event "45th GER-ch Rapid 2019"]
[Site "Neumarkt in der Oberpfalz"]
[Date "2019.09.21"]
[Round "4.4"]
[White "Schilay, Lorenz"]
[Black "Parashchenko, Oleg"]
[Result "0-1"]
[ECO "C47"]
[WhiteElo "1871"]
[BlackElo "2136"]
[Annotator "NA"]
[PlyCount "122"]
[EventDate "2019.09.21"]
[EventType "swiss"]
[EventCountry "GER"]
[SourceTitle "playchess.com"]
[Source "ChessBase"]
[SourceQuality "1"]
[TimeControl "900+10"]

1. e4 {[%emt 0:00:00]} e5 {[%emt 0:00:00]} 2. Nf3 {[%emt 0:00:00]} Nc6 {[%emt 0:00:00]} 3. Nc3 {[%emt 0:00:00]} Nf6 {[%emt 0:00:01]} 4. a3 {[%emt 0:00:00]} Be7 {[%emt 0:00:35]} 5. d4 {[%emt 0:00:03]} exd4 {[%emt 0:00:12]} 6. Nxd4 {[%emt 0:00:04]} O-O {[%emt 0:00:42]} 7. Be3 {[%emt 0:00:25]} d5 {[%emt 0:01:01]} 8. exd5 {[%emt 0:00:25]} Nxd5 {[%emt 0:00:29]} 9. Nxc6 {[%emt 0:02:20]} bxc6 {[%emt 0:00:03]} 10. Nxd5 {[%emt 0:01:58]} cxd5 {[%emt 0:00:28]} 11. Bd3 {[%emt 0:00:10]} Bd6 {[%emt 0:02:27]} 12. Qf3 {[%emt 0:01:09]} Bb7 {[%emt 0:00:55]} 13. O-O {[%emt 0:01:04]} Qh4 {[%emt 0:01:06]} 14. g3 {[%emt 0:01:53]} Qd8 {[%emt 0:00:31]} 15. b4 {[%emt 0:01:54]} a5 {[%emt 0:00:59]} 16. c3 {[%emt 0:00:11]} Re8 {[%emt 0:03:37]} 17. Bd4 {[%emt 0:02:36]} Be5 {[%emt 0:01:19]} 18. Qg4 {[%emt 0:01:50]} Bc8 {[%emt 0:01:18]} 19. Bxh7+ {[%emt 0:01:27]} Kxh7 {[%emt 0:00:34]} 20. Qh5+ {[%emt 0:00:01]} Kg8 {[%emt 0:00:03]} 21. Bxe5 {[%emt 0:00:02]} Ra6 {[%emt 0:00:08]} 22. f4 {[%emt 0:00:15]} Rg6 {[%emt 0:00:38]} 23. Rae1 {[%emt 0:00:25]} Bg4 {[%emt 0:00:09]} 24. Qh4 {[%emt 0:00:07]} Qxh4 {[%emt 0:00:07]} 25. gxh4 {[%emt 0:00:02]} Be2+ {[%emt 0:00:15]} 26. Kf2 {[%emt 0:00:02]} Bxf1 {[%emt 0:00:03]} 27. Rxf1 {[%emt 0:00:09]} axb4 {[%emt 0:00:02]} 28. axb4 {[%emt 0:00:01]} f6 {[%emt 0:00:17]} 29. Bxc7 {[%emt 0:00:40]} Rc8 {[%emt 0:00:12]} 30. Bd6 {[%emt 0:00:08]} Rxc3 {[%emt 0:00:04]} 31. Rd1 {[%emt 0:00:06]} Rc2+ {[%emt 0:00:11]} 32. Kf3 {[%emt 0:00:02]} Rgg2 {[%emt 0:00:27]} 33. Rxd5 {[%emt 0:00:09]} Rxh2 {[%emt 0:00:06]} 34. h5 {[%emt 0:00:07]} Rhd2 {[%emt 0:00:07]} 35. Rxd2 {[%emt 0:00:05]} Rxd2 {[%emt 0:00:02]} 36. Bc5 {[%emt 0:00:01]} Rd5 {[%emt 0:00:11]} 37. Kg4 {[%emt 0:00:02]} Kf7 {[%emt 0:00:03]} 38. Bb6 {[%emt 0:00:03]} Ke6 {[%emt 0:00:52]} 39. Bc5 {[%emt 0:00:01]} Rd2 {[%emt 0:00:22]} 40. Bf8 {[%emt 0:00:09]} Rb2 {[%emt 0:00:33]} 41. Kf3 {[%emt 0:00:07]} Rh2 {[%emt 0:00:14]} 42. Bxg7 {[%emt 0:00:02]} Rxh5 {[%emt 0:00:02]} 43. Kg4 {[%emt 0:00:03]} Rh1 {[%emt 0:00:09]} 44. Bf8 {[%emt 0:00:01]} f5+ {[%emt 0:00:04]} 45. Kf3 {[%emt 0:00:03]} Rb1 {[%emt 0:00:02]} 46. Bc5 {[%emt 0:00:02]} Rb3+ {[%emt 0:00:02]} 47. Ke2 {[%emt 0:00:03]} Kd5 {[%emt 0:00:01]} 48. Kd2 {[%emt 0:00:02]} Rf3 {[%emt 0:00:19]} 49. Be3 {[%emt 0:00:19]} Ke4 {[%emt 0:00:02]} 50. Bc5 {[%emt 0:00:09]} Kxf4 {[%emt 0:00:19]} 51. b5 {[%emt 0:00:07]} Rb3 {[%emt 0:00:16]} 52. b6 {[%emt 0:00:01]} Ke4 {[%emt 0:00:05]} 53. Ke2 {[%emt 0:00:05]} f4 {[%emt 0:00:03]} 54. Kf2 {[%emt 0:00:04]} f3 {[%emt 0:00:03]} 55. Kf1 {[%emt 0:00:02]} Rb2 {[%emt 0:00:04]} 56. Bf2 {[%emt 0:00:06]} Rb1+ {[%emt 0:00:09]} 57. Be1 {[%emt 0:00:01]} Rxb6 {[%emt 0:00:22]} 58. Kf2 {[%emt 0:00:06]} Rb2+ {[%emt 0:00:06]} 59. Kg3 {[%emt 0:00:01]} Rg2+ {[%emt 0:00:02]} 60. Kh3 {[%emt 0:00:01]} Rg8 {[%emt 0:00:02]} 61. Bf2 {[%emt 0:00:03]} Kd3 {[%emt 0:00:02]} 0-1

[Event "45th GER-ch Rapid 2019"]
[Site "Neumarkt in der Oberpfalz"]
[Date "2019.09.21"]
[Round "5.3"]
[White "Beesk, Kevin"]
[Black "Schenderowitsch, Michael"]
[Result "0-1"]
[ECO "B23"]
[WhiteElo "1969"]
[BlackElo "2334"]
[Annotator "RC"]
[PlyCount "152"]
[EventDate "2019.09.21"]
[EventType "swiss"]
[EventCountry "GER"]
[SourceTitle "playchess.com"]
[Source "ChessBase"]
[SourceQuality "1"]
[TimeControl "900+10"]

1. Nc3 {[%emt 0:00:00]} d5 {[%emt 0:00:00]} 2. e4 {[%emt 0:00:00]} e6 {[%emt 0:00:00]} 3. g3 {[%emt 0:00:00]} c5 {[%emt 0:01:17]} 4. Bg2 {[%emt 0:00:06]} dxe4 {[%emt 0:00:23]} 5. Nxe4 {[%emt 0:00:04]} Nc6 {[%emt 0:00:04]} 6. d3 {[%emt 0:00:58]} Nge7 {[%emt 0:02:36]} 7. Nf3 {[%emt 0:00:23]} Nf5 {[%emt 0:00:54]} 8. O-O {[%emt 0:00:11]} Be7 {[%emt 0:00:02]} 9. Re1 {[%emt 0:00:31]} O-O {[%emt 0:00:06]} 10. Bd2 {[%emt 0:00:51]} Qc7 {[%emt 0:03:30]} 11. Bc3 {[%emt 0:00:40]} Nfd4 {[%emt 0:00:50]} 12. h4 {[%emt 0:03:46]} e5 {[%emt 0:01:01]} 13. Bd2 {[%emt 0:01:36]} Bg4 {[%emt 0:00:22]} 14. c3 {[%emt 0:00:21]} Ne6 {[%emt 0:00:18]} 15. Qc2 {[%emt 0:01:03]} h6 {[%emt 0:00:29]} 16. Nh2 {[%emt 0:01:00]} Bf5 {[%emt 0:00:02]} 17. Rad1 {[%emt 0:00:20]} Rad8 {[%emt 0:00:08]} 18. Bc1 {[%emt 0:00:49]} Bg6 {[%emt 0:00:23]} 19. Qe2 {[%emt 0:01:46]} Qd7 {[%emt 0:02:52]} 20. Bf1 {[%emt 0:00:02]} Rfe8 {[%emt 0:00:17]} 21. h5 {[%emt 0:00:23]} Bh7 {[%emt 0:00:32]} 22. Nf3 {[%emt 0:00:56]} Nf8 {[%emt 0:00:29]} 23. Kh2 {[%emt 0:00:40]} Bf5 {[%emt 0:00:06]} 24. Nh4 {[%emt 0:00:44]} Bg4 {[%emt 0:00:26]} 25. f3 {[%emt 0:00:01]} Bxh5 {[%emt 0:00:08]} 26. Bh3 {[%emt 0:00:02]} Qc7 {[%emt 0:00:26]} 27. Nf5 {[%emt 0:00:25]} Bg6 {[%emt 0:00:16]} 28. Qe3 {[%emt 0:01:10]} Bxf5 {[%emt 0:00:08]} 29. Bxf5 {[%emt 0:00:01]} Nh7 {[%emt 0:00:21]} 30. Kg2 {[%emt 0:00:10]} Ng5 {[%emt 0:00:25]} 31. Rh1 {[%emt 0:00:18]} b6 {[%emt 0:00:10]} 32. Rdg1 {[%emt 0:00:20]} Rd5 {[%emt 0:00:21]} 33. Nf2 {[%emt 0:00:15]} Qd8 {[%emt 0:00:22]} 34. Be4 {[%emt 0:00:07]} Rd6 {[%emt 0:00:10]} 35. f4 {[%emt 0:00:09]} exf4 {[%emt 0:00:05]} 36. gxf4 {[%emt 0:00:06]} Nxe4 {[%emt 0:00:05]} 37. dxe4 {[%emt 0:00:11]} Rg6+ {[%emt 0:00:21]} 38. Kf1 {[%emt 0:00:02]} Rxg1+ {[%emt 0:00:11]} 39. Rxg1 {[%emt 0:00:01]} Bf8 {[%emt 0:00:12]} 40. Qh3 {[%emt 0:00:10]} Qd6 {[%emt 0:00:24]} 41. Ke2 {[%emt 0:00:25]} Qe6 {[%emt 0:00:01]} 42. f5 {[%emt 0:00:08]} Qc4+ {[%emt 0:00:03]} 43. Qd3 {[%emt 0:00:23]} Qxd3+ {[%emt 0:00:00]} 44. Kxd3 {[%emt 0:00:01]} Ne5+ {[%emt 0:00:01]} 45. Kc2 {[%emt 0:00:10]} Kh7 {[%emt 0:01:13]} 46. Rh1 {[%emt 0:00:19]} c4 {[%emt 0:00:39]} 47. Nh3 {[%emt 0:00:46]} Rd8 {[%emt 0:00:16]} 48. Bf4 {[%emt 0:00:12]} Nd3 {[%emt 0:00:03]} 49. Be3 {[%emt 0:00:13]} Re8 {[%emt 0:00:01]} 50. Bd4 {[%emt 0:00:40]} Kg8 {[%emt 0:00:08]} 51. e5 {[%emt 0:00:01]} Nxe5 {[%emt 0:00:06]} 52. Re1 {[%emt 0:00:09]} Bd6 {[%emt 0:00:09]} 53. Nf4 {[%emt 0:00:09]} Kf8 {[%emt 0:00:07]} 54. Nh5 {[%emt 0:00:06]} f6 {[%emt 0:00:14]} 55. Nf4 {[%emt 0:00:01]} Kf7 {[%emt 0:00:58]} 56. Bxe5 {[%emt 0:00:28]} fxe5 {[%emt 0:01:04]} 57. Nh5 {[%emt 0:00:15]} Rd8 {[%emt 0:00:11]} 58. Rg1 {[%emt 0:00:03]} Bf8 {[%emt 0:00:01]} 59. Re1 {[%emt 0:00:18]} Rd5 {[%emt 0:00:07]} 60. b3 {[%emt 0:00:03]} cxb3+ {[%emt 0:01:06]} 61. axb3 {[%emt 0:00:01]} a5 {[%emt 0:00:31]} 62. Ng3 {[%emt 0:00:16]} Be7 {[%emt 0:00:18]} 63. Ne4 {[%emt 0:00:05]} Bf6 {[%emt 0:00:08]} 64. Rh1 {[%emt 0:00:14]} Rd8 {[%emt 0:00:06]} 65. Rh2 {[%emt 0:00:07]} Be7 {[%emt 0:00:07]} 66. Rh3 {[%emt 0:00:13]} b5 {[%emt 0:00:06]} 67. Rg3 {[%emt 0:00:26]} a4 {[%emt 0:00:54]} 68. bxa4 {[%emt 0:00:39]} bxa4 69. Rg6 {[%emt 0:00:10]} Ra8 {[%emt 0:00:23]} 70. Rb6 {[%emt 0:00:04]} a3 {[%emt 0:00:16]} 71. Kb1 {[%emt 0:00:01]} Ra4 {[%emt 0:00:07]} 72. Nd2 {[%emt 0:00:35]} h5 {[%emt 0:00:15]} 73. Rb7 {[%emt 0:00:05]} h4 {[%emt 0:00:19]} 74. Nf3 {[%emt 0:00:30]} Ke8 {[%emt 0:00:15]} 75. Nxe5 {[%emt 0:00:04]} Bf6 {[%emt 0:00:26]} 76. Ng6 {[%emt 0:00:24]} a2+ {[%emt 0:00:07]} 0-1

[Event "45th GER-ch Rapid 2019"]
[Site "Neumarkt in der Oberpfalz"]
[Date "2019.09.21"]
[Round "5.4"]
[White "Promyshlyanskiy, Vitaliy"]
[Black "Schilay, Lorenz"]
[Result "1-0"]
[ECO "C73"]
[WhiteElo "2275"]
[BlackElo "1871"]
[Annotator "NA"]
[PlyCount "46"]
[EventDate "2019.09.21"]
[EventType "swiss"]
[EventCountry "GER"]
[SourceTitle "playchess.com"]
[Source "ChessBase"]
[SourceQuality "1"]
[TimeControl "900+10"]

1. e4 {[%emt 0:00:00]} e5 {[%emt 0:00:00]} 2. Nf3 {[%emt 0:00:00]} Nc6 {[%emt 0:00:00]} 3. Bb5 {[%emt 0:00:00]} a6 {[%emt 0:00:00]} 4. Ba4 {[%emt 0:00:00]} d6 {[%emt 0:00:00]} 5. Bxc6+ {[%emt 0:00:12]} bxc6 {[%emt 0:00:00]} 6. d4 {[%emt 0:00:10]} exd4 {[%emt 0:00:12]} 7. Nxd4 {[%emt 0:00:06]} Bb7 {[%emt 0:00:12]} 8. Nc3 {[%emt 0:00:20]} Be7 {[%emt 0:00:15]} 9. Be3 {[%emt 0:00:37]} d5 {[%emt 0:00:21]} 10. Nf5 {[%emt 0:00:29]} Bf6 {[%emt 0:00:07]} 11. Bd4 {[%emt 0:01:09]} dxe4 {[%emt 0:00:26]} 12. Nxg7+ {[%emt 0:00:51]} Kf8 {[%emt 0:00:01]} 13. Bxf6 {[%emt 0:02:03]} Qxf6 {[%emt 0:00:03]} 14. Nh5 {[%emt 0:00:05]} Qg5 {[%emt 0:00:09]} 15. Qd4 {[%emt 0:02:38]} Rd8 {[%emt 0:03:21]} 16. Qxh8 {[%emt 0:00:10]} Qxg2 {[%emt 0:00:22]} 17. Qg7+ {[%emt 0:00:24]} Qxg7 {[%emt 0:00:04]} 18. Nxg7 {[%emt 0:00:01]} Kxg7 {[%emt 0:00:02]} 19. Rg1+ {[%emt 0:00:04]} Kf8 {[%emt 0:00:08]} 20. Nxe4 {[%emt 0:00:21]} Re8 {[%emt 0:00:03]} 21. O-O-O {[%emt 0:00:03]} Rxe4 {[%emt 0:00:07]} 22. Rd8+ {[%emt 0:00:02]} Ke7 {[%emt 0:00:01]} 23. Rgxg8 {[%emt 0:00:18]} Bc8 {[%emt 0:12:56]} 1-0

[Event "45th GER-ch Rapid 2019"]
[Site "Neumarkt in der Oberpfalz"]
[Date "2019.09.22"]
[Round "6.4"]
[White "Schilay, Lorenz"]
[Black "Luther, Helmut"]
[Result "1/2-1/2"]
[ECO "B01"]
[WhiteElo "1871"]
[BlackElo "2007"]
[Annotator "NA RC"]
[PlyCount "65"]
[EventDate "2019.09.21"]
[EventType "swiss"]
[EventCountry "GER"]
[SourceTitle "playchess.com"]
[Source "ChessBase"]
[SourceQuality "1"]
[TimeControl "900+10"]

1. e4 {[%emt 0:00:00]} d5 {[%emt 0:00:00]} 2. exd5 {[%emt 0:00:00]} Qxd5 {[%emt 0:00:00]} 3. Nc3 {[%emt 0:00:00]} Qd6 {[%emt 0:00:04]} 4. d4 {[%emt 0:00:00]} Nf6 {[%emt 0:00:04]} 5. Nf3 {[%emt 0:00:26]} g6 {[%emt 0:00:12]} 6. g3 {[%emt 0:00:26]} Bg7 {[%emt 0:00:05]} 7. Bf4 {[%emt 0:00:09]} Qd8 {[%emt 0:00:04]} 8. Bg2 {[%emt 0:00:17]} O-O {[%emt 0:00:08]} 9. O-O {[%emt 0:00:04]} c6 {[%emt 0:00:41]} 10. Re1 {[%emt 0:00:09]} Nbd7 {[%emt 0:00:41]} 11. Qd2 {[%emt 0:00:39]} Re8 {[%emt 0:00:22]} 12. Rad1 {[%emt 0:00:17]} Nd5 {[%emt 0:01:39]} 13. Nxd5 {[%emt 0:00:47]} cxd5 {[%emt 0:00:01]} 14. Ne5 {[%emt 0:00:21]} Nxe5 {[%emt 0:00:29]} 15. Bxe5 {[%emt 0:00:07]} Bg4 {[%emt 0:00:28]} 16. Rc1 {[%emt 0:00:53]} Rc8 {[%emt 0:00:55]} 17. Bxg7 {[%emt 0:00:22]} Kxg7 {[%emt 0:00:03]} 18. Qf4 {[%emt 0:00:13]} Be6 {[%emt 0:01:43]} 19. Qe5+ {[%emt 0:00:47]} Kg8 {[%emt 0:00:02]} 20. c3 {[%emt 0:01:56]} Qc7 {[%emt 0:00:22]} 21. h3 {[%emt 0:01:20]} Qd7 {[%emt 0:02:30]} 22. Kh2 {[%emt 0:00:17]} Rc6 {[%emt 0:00:05]} 23. f4 {[%emt 0:02:01]} Rb6 {[%emt 0:00:46]} 24. Re2 {[%emt 0:00:18]} f6 {[%emt 0:02:58]} 25. Qe3 {[%emt 0:00:02]} Bf7 {[%emt 0:00:32]} 26. Bf3 {[%emt 0:01:04]} Re6 {[%emt 0:00:28]} 27. Qf2 {[%emt 0:00:23]} Rxe2 {[%emt 0:00:02]} 28. Qxe2 {[%emt 0:00:05]} b5 {[%emt 0:00:53]} 29. a3 {[%emt 0:00:30]} a6 {[%emt 0:01:12]} 30. Re1 {[%emt 0:00:27]} Kf8 {[%emt 0:00:04]} 31. Bg4 {[%emt 0:00:32]} Qd6 {[%emt 0:00:13]} 32. Kg2 {[%emt 0:03:09]} Rb8 {[%emt 0:00:16]} 33. Be6 {[%emt 0:01:06]} 1/2-1/2

[Event "45th GER-ch Rapid 2019"]
[Site "Neumarkt in der Oberpfalz"]
[Date "2019.09.22"]
[Round "7.1"]
[White "Donchenko, Alexander"]
[Black "Buhmann, Rainer"]
[Result "0-1"]
[ECO "A21"]
[WhiteElo "2631"]
[BlackElo "2574"]
[Annotator "RC"]
[PlyCount "164"]
[EventDate "2019.09.21"]
[EventType "swiss"]
[EventCountry "GER"]
[SourceTitle "playchess.com"]
[Source "ChessBase"]
[SourceQuality "1"]
[TimeControl "900+10"]

1. c4 {[%emt 0:00:00]} e5 {[%emt 0:00:03]} 2. g3 {[%emt 0:00:00]} d6 {[%emt 0:00:06]} 3. Bg2 {[%emt 0:00:00]} f5 {[%emt 0:00:05]} 4. Nc3 {[%emt 0:00:09]} Nf6 {[%emt 0:00:07]} 5. d4 {[%emt 0:00:18]} Be7 {[%emt 0:00:06]} 6. Nf3 {[%emt 0:00:20]} e4 {[%emt 0:00:08]} 7. Ng5 {[%emt 0:00:35]} c6 {[%emt 0:00:42]} 8. O-O {[%emt 0:00:28]} h6 {[%emt 0:01:20]} 9. Nh3 {[%emt 0:00:03]} O-O {[%emt 0:01:36]} 10. f3 {[%emt 0:00:26]} d5 {[%emt 0:00:59]} 11. cxd5 {[%emt 0:00:47]} cxd5 {[%emt 0:00:08]} 12. Nf4 {[%emt 0:00:19]} Nc6 {[%emt 0:00:58]} 13. Be3 {[%emt 0:01:13]} Na5 {[%emt 0:02:24]} 14. b3 {[%emt 0:01:13]} Nc6 {[%emt 0:01:39]} 15. Qd2 {[%emt 0:05:20]} Bb4 {[%emt 0:00:58]} 16. a3 {[%emt 0:00:14]} Bxc3 {[%emt 0:00:50]} 17. Qxc3 {[%emt 0:00:02]} Qe8 {[%emt 0:01:29]} 18. b4 {[%emt 0:00:44]} g5 {[%emt 0:00:18]} 19. Nh3 {[%emt 0:00:08]} Be6 {[%emt 0:00:18]} 20. b5 {[%emt 0:01:17]} Ne7 {[%emt 0:00:18]} 21. Qb3 {[%emt 0:00:09]} Qd7 {[%emt 0:00:15]} 22. f4 {[%emt 0:00:36]} g4 {[%emt 0:00:05]} 23. Nf2 {[%emt 0:00:01]} Rfc8 {[%emt 0:00:10]} 24. Rfc1 {[%emt 0:00:10]} Ne8 {[%emt 0:00:25]} 25. Bd2 {[%emt 0:00:27]} Nd6 {[%emt 0:00:13]} 26. a4 {[%emt 0:00:02]} Nc4 {[%emt 0:00:47]} 27. Bb4 {[%emt 0:00:07]} h5 {[%emt 0:00:27]} 28. h4 {[%emt 0:00:31]} a6 {[%emt 0:00:17]} 29. Nd1 {[%emt 0:00:45]} axb5 {[%emt 0:00:21]} 30. Bxe7 {[%emt 0:00:02]} Qxe7 {[%emt 0:00:35]} 31. axb5 {[%emt 0:00:04]} Qd6 {[%emt 0:00:14]} 32. Bf1 {[%emt 0:01:21]} Qb6 {[%emt 0:00:16]} 33. e3 {[%emt 0:00:45]} Rxa1 {[%emt 0:00:25]} 34. Rxa1 {[%emt 0:00:01]} Nd2 {[%emt 0:00:22]} 35. Qb4 {[%emt 0:00:13]} Nf3+ {[%emt 0:00:19]} 36. Kf2 {[%emt 0:00:13]} Qc7 {[%emt 0:00:27]} 37. Be2 {[%emt 0:00:16]} Kf7 {[%emt 0:00:13]} 38. Ra7 {[%emt 0:00:59]} Qb6 {[%emt 0:00:14]} 39. Ra3 {[%emt 0:00:07]} Qc7 {[%emt 0:00:10]} 40. Nc3 {[%emt 0:00:15]} Qe7 {[%emt 0:00:05]} 41. Qb2 {[%emt 0:00:11]} Nxh4 {[%emt 0:00:21]} 42. Ra7 {[%emt 0:00:30]} Nf3 {[%emt 0:00:07]} 43. Qa3 {[%emt 0:00:26]} Qxa3 {[%emt 0:00:14]} 44. Rxa3 {[%emt 0:00:02]} Ke7 {[%emt 0:00:06]} 45. b6 {[%emt 0:00:24]} h4 {[%emt 0:00:21]} 46. gxh4 {[%emt 0:00:01]} Nxh4 {[%emt 0:00:04]} 47. Nb5 {[%emt 0:00:24]} Bd7 {[%emt 0:00:13]} 48. Ra7 {[%emt 0:00:06]} Bc6 {[%emt 0:00:08]} 49. Nc3 {[%emt 0:00:10]} Kd6 {[%emt 0:00:08]} 50. Nb5+ {[%emt 0:00:06]} Kd7 {[%emt 0:00:09]} 51. Nc3 {[%emt 0:00:02]} Nf3 {[%emt 0:00:05]} 52. Bb5 {[%emt 0:00:12]} Bxb5 {[%emt 0:00:17]} 53. Rxb7+ {[%emt 0:00:13]} Kc6 {[%emt 0:00:02]} 54. Rf7 {[%emt 0:00:12]} Kxb6 {[%emt 0:00:24]} 55. Nxd5+ {[%emt 0:00:02]} Ka5 {[%emt 0:00:11]} 56. Rxf5 {[%emt 0:00:08]} Nd2 {[%emt 0:00:20]} 57. Rg5 {[%emt 0:00:23]} Rc2 {[%emt 0:00:09]} 58. Kg3 {[%emt 0:00:06]} Ka4 {[%emt 0:00:09]} 59. f5 {[%emt 0:00:13]} Nf1+ {[%emt 0:00:06]} 60. Kxg4 {[%emt 0:00:06]} Bc6 {[%emt 0:00:04]} 61. Nb6+ {[%emt 0:00:21]} Kb5 {[%emt 0:00:10]} 62. Kf4 {[%emt 0:00:11]} Kxb6 {[%emt 0:00:03]} 63. f6 {[%emt 0:00:02]} Rf2+ {[%emt 0:00:47]} 64. Ke5 Nxe3 {[%emt 0:00:00]} 65. d5 {[%emt 0:00:13]} Nxd5 {[%emt 0:00:00]} 66. Kxe4 {[%emt 0:00:13]} Nxf6+ {[%emt 0:00:00]} 67. Ke3 {[%emt 0:00:00]} Rf3+ {[%emt 0:00:00]} 68. Ke2 {[%emt 0:00:01]} Rb3 {[%emt 0:00:00]} 69. Re5 {[%emt 0:00:01]} Ne4 {[%emt 0:01:00]} 70. Re7 {[%emt 0:00:03]} Kc5 {[%emt 0:00:00]} 71. Ra7 {[%emt 0:00:04]} Kd4 {[%emt 0:00:00]} 72. Kd1 {[%emt 0:00:01]} Rb2 {[%emt 0:00:00]} 73. Kc1 {[%emt 0:00:02]} Rh2 {[%emt 0:00:00]} 74. Ra6 {[%emt 0:00:03]} Bb5 {[%emt 0:00:00]} 75. Ra5 {[%emt 0:00:02]} Bc4 {[%emt 0:00:00]} 76. Ra3 {[%emt 0:00:03]} Nc5 {[%emt 0:00:00]} 77. Rg3 {[%emt 0:00:08]} Nd3+ {[%emt 0:00:00]} 78. Kb1 {[%emt 0:00:01]} Ba2+ {[%emt 0:00:00]} 79. Ka1 {[%emt 0:00:01]} Bb3 {[%emt 0:00:00]} 80. Rg1 {[%emt 0:00:01]} Kc3 {[%emt 0:00:10]} 81. Rf1 {[%emt 0:00:11]} Ra2+ {[%emt 0:00:07]} 82. Kb1 {[%emt 0:00:02]} Ra7 {[%emt 0:00:05]} 0-1